lending/lending_fUSD_20240124
["ID","MTS","AMOUNT","RATE_DAILY","PERIOD"]
[312627007,1706115850747,-155.28,0.00022752,2]
[312627008,1706115850769,-494.84174762,0.00022769,2]
[312627009,1706115850794,-251.33576022,0.00022799,2]
[312627010,1706115850818,-800.0,0.000228,8]
[312627011,1706115850840,-155.28,0.00022815,2]
[312627012,1706115850861,-155.28,0.00022878,2]
[312627013,1706115850882,-1558.31478234,0.00022885,2]
[312627014,1706115850903,-215.79672251,0.00022885,4]
[312627015,1706115850924,-2224.16708836,0.00022885,2]
[312627016,1706115850945,-229.76710984,0.00022885,2]
[312627017,1706115850965,-184.26397693,0.00022885,2]
[312627018,1706115850987,-170.15365364,0.00022885,2]
[312627019,1706115851007,-244.44556758,0.00022896,2]
[312627020,1706115851030,-4486.20795108,0.00022896,2]
[312627021,1706115851053,-1826.2467,0.00022896,2]
[312627022,1706115851075,-313.71364276,0.00022896,2]
[312627023,1706115851097,-1000.0,0.00022896,2]
[312627024,1706115851118,-965.62408182,0.00022897,2]
[312627025,1706115851141,-948780.86267747,0.00022898,2]
[312627026,1706115852638,600.0,0.00021444,2]
[312627027,1706115943491,209.35386255,0.00021444,2]
[312627028,1706115971832,157.03308775,0.00021444,2]
[312627029,1706115993131,-412.67907844,0.00022884,2]
[312627030,1706115993152,-1000.0,0.00022884,2]
[312627031,1706115993173,-760.60882365,0.00022885,2]
[312627032,1706115993193,-150.0,0.00022897,2]
[312627033,1706115993214,-824.02285526,0.00022898,2]
[312627034,1706116006184,155.0,0.00021444,2]
[312627035,1706116015654,1121.16406462,0.00021444,2]
[312627036,1706116044681,357.44898508,0.00020992,2]
[312627037,1706116044704,196.95101492,0.00020992,2]
[312627038,1706116074482,155.0,0.00020992,2]
[312627039,1706116088932,257.24572663,0.00020992,2]
[312627040,1706116187134,361.07949794,0.00018317,2]
[312627060,1706116231419,-928.53687171,0.00021897,2]
[312627061,1706116231435,-499.95,0.00021897,2]
[312627062,1706116231447,-441.0,0.00021897,2]
[312627063,1706116231459,-728.000002,0.00021897,2]
[312627064,1706116231473,-550.5757361,0.00021897,2]
[312627065,1706116231483,-359.777662,0.00021898,2]
[312627066,1706116231503,-205.612338,0.00021898,2]
[312627067,1706116231513,-155.0,0.00021949,2]
[312627068,1706116231523,-504.29,0.0002195,2]
[312627069,1706116231532,-2419.94362753,0.00021964,2]
[312627070,1706116231544,-1031.76632145,0.00021964,2]
[312627071,1706116231555,-641.78023561,0.00021964,2]
[312627072,1706116231589,-184.11945801,0.00021964,2]
[312627073,1706116231598,-1000.0,0.00021965,2]
[312627074,1706116231607,-199.48283561,0.00021965,2]
[312627075,1706116231617,-250.0,0.00021966,2]
[312627076,1706116231629,-380.43,0.00021978,2]
[312627077,1706116231638,-15175.70489527,0.00022396,2]
[312627078,1706116231665,-18621.35397385,0.00022396,2]
[312627079,1706116231674,-4078.36169071,0.00022397,2]
[312627087,1706116231792,-4044.32963381,0.00022397,2]
[312627123,1706116237353,-266.29936235,0.00022397,2]
[312627124,1706116237365,-275.96458678,0.00022397,2]
[312627125,1706116237381,-696.66443536,0.00022397,2]
[312627126,1706116237416,-526.48716042,0.00022397,2]
[312627127,1706116237434,-998.80882928,0.00022397,2]
[312627128,1706116237474,-510.92417955,0.00022397,2]
[312627129,1706116237539,-12976.38368978,0.00022397,2]
[312627130,1706116237549,-300.0,0.000224,8]
[312627131,1706116237559,-150.0,0.00022498,2]
[312627132,1706116237569,-700.0,0.000225,8]
[312627133,1706116237578,-1100.0,0.000226,8]
[312627134,1706116237588,-1500.0,0.000227,8]
[312627135,1706116237597,-504.29,0.00022762,2]
[312627136,1706116237606,-2941.1156,0.00022784,14]
[312627137,1706116237656,-1900.0,0.000228,8]
[312627138,1706116237665,-800.9175233,0.00022885,2]
[312627139,1706116237674,-283.40650586,0.00022896,2]
[312627140,1706116237683,-651.85793696,0.00022896,2]
[312627141,1706116237692,-213.76778008,0.00022896,2]
[312627142,1706116237702,-354.6810307,0.00022896,2]
[312627143,1706116237711,-319.09945817,0.00022896,2]
[312627144,1706116237720,-384.73155794,0.00022896,2]
[312627145,1706116237730,-247.20240037,0.00022897,2]
[312627146,1706116237739,-108598.56075161,0.00022898,2]
[312627147,1706116237749,-503.16,0.00022898,2]
[312627148,1706116237758,-274.4102338,0.00022898,2]
[312627149,1706116237768,-614.91362653,0.00022898,2]
[312627150,1706116237778,-172275.5757,0.00022899,2]
[312627151,1706116237788,-3897.59645965,0.00022899,2]
[312627153,1706116237798,-160.97953371,0.000229,2]
[312627155,1706116237807,-292827.35422952,0.000229,2]
[312627157,1706116237817,-856.62561489,0.000229,6]
[312627159,1706116237827,-1587.85302037,0.000229,2]
[312627161,1706116237836,-1038.87652156,0.000229,2]
[312627163,1706116237845,-184.26397693,0.000229,2]
[312627165,1706116237854,-280.2798231,0.000229,2]
[312627167,1706116237863,-300.0,0.000229,8]
[312627169,1706116237872,-2000.0,0.0002291,2]
[312627171,1706116237882,-418950.20036154,0.0002298,2]
[312627173,1706116237891,-186.41515541,0.00022986,2]
[312627175,1706116237900,-218.7086872,0.00022997,2]
[312627177,1706116237909,-3008.52191293,0.00022997,2]
[312627179,1706116237919,-233.38000799,0.00022997,2]
[312627181,1706116237928,-371.4493613,0.00022998,2]
[312627183,1706116237937,-260.091004,0.00022998,2]
[312627185,1706116237946,-249.64700977,0.00022998,2]
[312627187,1706116237955,-1523.04703137,0.00022999,2]
[312627189,1706116237965,-22618.4614423,0.00022999,2]
[312627191,1706116237974,-500.0,0.00022999,2]
[312627193,1706116237983,-500.0,0.00022999,2]
[312627195,1706116237991,-500.0,0.00022999,2]
[312627196,1706116238000,-476.32172068,0.00022999,2]
[312627198,1706116238009,-500.0,0.00022999,2]
[312627199,1706116238019,-500.0,0.00022999,2]
[312627201,1706116238028,-324.08542143,0.00022999,2]
[312627203,1706116238038,-500.0,0.00022999,2]
[312627205,1706116238047,-500.0,0.00022999,2]
[312627206,1706116238057,-500.0,0.00022999,2]
[312627208,1706116238067,-637.99888982,0.00022999,2]
[312627210,1706116238076,-500.0,0.00022999,2]
[312627211,1706116238085,-271171.06979766,0.00022999,2]
[312627213,1706116238094,-500.0,0.00022999,2]
[312627215,1706116238103,-252.11432785,0.00022999,2]
[312627216,1706116238112,-491.18763705,0.00022999,2]
[312627218,1706116238122,-500.0,0.00022999,2]
[312627219,1706116238131,-237.21531597,0.00022999,2]
[312627220,1706116238140,-300.0,0.00022999,2]
[312627221,1706116238150,-300.0,0.00022999,2]
[312627222,1706116238159,-300.0,0.00022999,2]
[312627223,1706116238168,-300.0,0.00022999,2]
[312627224,1706116238178,-300.0,0.00022999,2]
[312627225,1706116238187,-300.0,0.00022999,2]
[312627226,1706116238197,-300.0,0.00022999,2]
[312627227,1706116238206,-300.0,0.00022999,2]
[312627228,1706116238216,-300.0,0.00022999,2]
[312627229,1706116238225,-275.36274586,0.00022999,2]
[312627230,1706116238235,-500.0,0.00022999,2]
[312627231,1706116238245,-500.0,0.00022999,2]
[312627232,1706116238255,-500.0,0.00022999,2]
[312627233,1706116238265,-500.0,0.00022999,2]
[312627234,1706116238274,-500.0,0.00022999,2]
[312627235,1706116238284,-500.0,0.00022999,2]
[312627236,1706116238294,-500.0,0.00022999,2]
[312627237,1706116238303,-500.0,0.00022999,2]
[312627238,1706116238312,-500.0,0.00022999,2]
[312627239,1706116238321,-500.0,0.00022999,2]
[312627240,1706116238330,-500.0,0.00022999,2]
[312627241,1706116238340,-500.0,0.00022999,2]
[312627242,1706116238349,-500.0,0.00022999,2]
[312627243,1706116238360,-500.0,0.00022999,2]
[312627244,1706116238370,-606.60801845,0.00022999,2]
[312627245,1706116238381,-500.0,0.00022999,2]
[312627246,1706116238392,-439.75813532,0.00022999,2]
[312627247,1706116238402,-500.0,0.00022999,2]
[312627248,1706116238411,-500.0,0.00022999,2]
[312627249,1706116238420,-500.0,0.00022999,2]
[312627250,1706116238430,-407.07935867,0.00022999,2]
[312627251,1706116238441,-628.31743469,0.00022999,2]
[312627252,1706116238450,-500.0,0.00022999,2]
[312627253,1706116238460,-150.0,0.00022999,2]
[312627254,1706116238470,-150.0,0.00022999,2]
[312627255,1706116238480,-150.0,0.00022999,2]
[312627256,1706116238489,-150.0,0.00022999,2]
[312627257,1706116238498,-150.0,0.00022999,2]
[312627258,1706116238507,-229.00741884,0.00022999,2]
[312627259,1706116238517,-150.0,0.00022999,2]
[312627260,1706116238528,-150.0,0.00022999,2]
[312627261,1706116238538,-1897347.90966446,0.00023,2]
[312627262,1706116238551,-158961.58355516,0.00023,2]
[312627263,1706116238564,-45265.62557995,0.00023,2]
[312627264,1706116238573,-439765.3945979,0.00023,2]
[312627265,1706116238585,-912.37812795,0.00023,2]
[312627266,1706116238604,-76688.22256485,0.00023,2]
[312627267,1706116238615,-38964.96444031,0.00023,2]
[312627268,1706116238627,-21237.62500295,0.00023,2]
[312627269,1706116238640,-43418.69468215,0.00023,2]
[312627270,1706116238662,-1631.5164132,0.00023,2]
[312627271,1706116238676,-636.9005323,0.00023,2]
[312627272,1706116238712,-6507.98260126,0.00023,2]
[312627285,1706116240578,-377.63072068,0.000229,2]
[312627286,1706116240590,-1105.14733822,0.000229,2]
[312627287,1706116240599,-696.65266258,0.00023,2]
[312627288,1706116240629,-5828.02270684,0.00023,2]
[312627289,1706116240641,-985.28859452,0.00023,2]
[312627290,1706116240653,-2261.06744479,0.00023,2]
[312627291,1706116240672,-18761.41430294,0.00023,2]
[312627294,1706116240695,-1600.65,0.00023,2]
[312627296,1706116240706,-690.03922118,0.00023,2]
[312627298,1706116240725,-4082.2482,0.00023,2]
[312627300,1706116240930,-381.1652155,0.00023,2]
[312627307,1706116242537,-9193.80718049,0.00023,2]
[312627308,1706116242580,-21174.96615392,0.00023,2]
[312627309,1706116242704,-373.2497615,0.00023,2]
[312627310,1706116242715,-1405.81876783,0.00023,2]
[312627311,1706116242826,-28850.7986751,0.00023,2]
[312627312,1706116242906,-5737.0,0.00023,2]
[312627334,1706116245503,-199.09440055,0.00022999,2]
[312627336,1706116245513,-781.80849891,0.00022999,2]
[312627338,1706116245522,-2627.04474379,0.00023,2]
[312627341,1706116245537,-2248.46080941,0.00023,2]
[312627343,1706116245548,-3191.45056,0.00023,2]
[312627344,1706116245560,-8552.7044,0.00023,2]
[312627345,1706116245572,-547.62,0.00023,2]
[312627346,1706116245584,-895.365,0.00023,2]
[312627347,1706116245617,-1122.29312567,0.00023,2]
[312627370,1706116277246,673.69693445,0.00018317,2]
[312627371,1706116320899,186.44835477,0.00020461,2]
[312627372,1706116322147,155.72027097,0.00020691,2]
[312627373,1706116322891,13.85820032,0.00020691,2]
[312627374,1706116322911,141.54748058,0.00020691,2]
[312627375,1706116378645,360.39878748,0.00017596,2]
[312627388,1706116462051,165.18,0.00017481,2]
[312627389,1706116509491,564.22,0.00019933,2]
[312627401,1706116651031,471.15,0.00021498,2]
[312627402,1706116663079,297.50373194,0.00021644,2]
[312627403,1706116663101,97.44626806,0.00021644,2]
[312627404,1706116679651,302.29,0.00021473,2]
[312627405,1706116725772,480.0,0.00021579,2]
[312627406,1706116839215,150.0,0.0002076,2]
[312627407,1706116840497,150.0,0.00021308,2]
[312627408,1706116847056,500.0,0.00021649,2]
[312627409,1706116867864,250.0,0.00021649,2]
[312627410,1706116941864,70.26373194,0.00021699,2]
[312627411,1706116941885,929.73626806,0.00021699,2]
[312627412,1706116951235,155.0,0.00021699,2]
[312627413,1706116951607,915.26373194,0.00021699,2]
[312627414,1706116951629,2000.0,0.00021699,2]
[312627415,1706116951650,232.79887787,0.00021699,2]
[312627416,1706116951761,502.01326483,0.00021699,2]
[312627417,1706116953809,384.73155794,0.00021699,2]
[312627418,1706116955187,401.03358243,0.00021699,2]
[312627419,1706116958853,479.42271693,0.00021699,2]
[312627420,1706116958876,2000.0,0.00021699,2]
[312627421,1706116958899,1772.50779554,0.00021699,2]
[312627422,1706116960225,227.49220446,0.00021699,2]
[312627423,1706116960247,1190.77537707,0.00021699,2]
[312627424,1706116963736,155.0,0.00021699,2]
[312627425,1706116963862,654.22462293,0.00021699,2]
[312627426,1706116963882,283.42342633,0.00021699,2]
[312627427,1706116964815,1716.57657367,0.00021699,2]
[312627428,1706116964841,2000.0,0.00021699,2]
[312627429,1706116964863,776.42362107,0.00021699,2]
[312627430,1706116965205,155.0,0.00021699,2]
[312627431,1706116967437,529.95129566,0.00021699,2]
[312627432,1706116967683,538.62508327,0.00021699,2]
[312627433,1706116967704,619.6292276,0.00021699,2]
[312627434,1706116969756,499.54967995,0.00021699,2]
[312627435,1706116969785,880.82109245,0.00021699,2]
[312627436,1706116969807,932.55410752,0.00021699,2]
[312627437,1706116969843,214.52240185,0.00021699,2]
[312627438,1706116969895,852.92349063,0.00021699,2]
[312627439,1706116969917,352.0955225,0.00021699,2]
[312627440,1706116971375,524.21526262,0.00021699,2]
[312627441,1706116973181,155.13230866,0.00021699,2]
[312627442,1706116973333,755.08817862,0.00021699,2]
[312627443,1706116974423,213.4687276,0.00021699,2]
[312627444,1706116974445,173.957025,0.00021699,2]
[312627445,1706116975169,400.55654245,0.00021699,2]
[312627446,1706116979737,158.84571897,0.00021699,2]
[312627447,1706116984816,1266.64071358,0.00021699,2]
[312627448,1706116984837,2000.0,0.00021699,2]
[312627449,1706116984858,1221.24077941,0.00021699,2]
[312627450,1706116987869,778.75922059,0.00021699,2]
[312627451,1706116987890,424.82326749,0.00021699,2]
[312627452,1706116989152,525.5366094,0.00021699,2]
[312627453,1706116990367,386.96580594,0.00021699,2]
[312627454,1706116990518,420.23,0.0002166,2]
[312627455,1706117006625,172.09680919,0.00021699,2]
[312627456,1706117007461,70.34750798,0.00021699,2]
[312627457,1706117007483,2000.0,0.00021699,2]
[312627458,1706117007505,2000.0,0.00021699,2]
[312627459,1706117007525,2000.0,0.00021699,2]
[312627460,1706117007546,2000.0,0.00021699,2]
[312627461,1706117007566,2000.0,0.00021699,2]
[312627462,1706117011781,485.7219,0.00021605,2]
[312627463,1706117070228,610.71165005,0.00021605,2]
[312627464,1706117084966,392.62,0.00021584,2]
[312627465,1706117085891,275.06,0.00021584,2]
[312627466,1706117086287,610.71165005,0.00021605,2]
[312627467,1706117112990,610.71165005,0.00021605,2]
[312627468,1706117113522,1852.42,0.00021527,2]
[312627474,1706117118520,19142.60650889,0.00021605,2]
[312627475,1706117130468,208.59208709,0.00021605,2]
[312627476,1706117136661,304.34,0.00021404,2]
[312627479,1706117168890,2648.5308,0.00021556,2]
[312627482,1706117184824,543.55682798,0.0002164,2]
[312627485,1706117199382,24099.12194253,0.00021297,2]
[312627487,1706117211454,171.63288693,0.0002164,2]
[312627489,1706117222108,616.0,0.00021425,2]
[312627491,1706117229872,5217.40841943,0.00021425,2]
[312627496,1706117247701,300.0,0.00021543,2]
[312627502,1706117282732,155.27,0.00021504,2]
[312627504,1706117303192,2705.0,0.00021387,2]
[312627505,1706117309605,1014.0,0.0002164,2]
[312627508,1706117337374,163.74658606,0.0002159,2]
[312627510,1706117354468,171.63288693,0.0002164,2]
[312627514,1706117423126,300.0,0.00021541,2]
[312627534,1706117431581,-1051.55704742,0.00021643,2]
[312627536,1706117431592,-315.96,0.00021644,2]
[312627538,1706117431602,-2000.0,0.00021656,2]
[312627540,1706117431613,-150.0,0.00021689,2]
[312627542,1706117431622,-150.0,0.00021689,2]
[312627544,1706117431631,-171.63288693,0.00021689,2]
[312627546,1706117431642,-7319.46512055,0.0002169,2]
[312627548,1706117431655,-9000.0,0.0002169,2]
[312627552,1706117431690,-753.8500003,0.0002169,2]
[312627553,1706117431726,-1638.91926737,0.0002169,2]
[312627554,1706117431792,-296.01794011,0.0002169,2]
[312627555,1706117431877,-14400.50002892,0.0002169,2]
[312627557,1706117431887,-46399.11288331,0.00021691,2]
[312627559,1706117431896,-544.07186673,0.00021692,2]
[312627562,1706117431906,-161.90565138,0.00021698,2]
[312627564,1706117431916,-232.19045124,0.000217,2]
[312627566,1706117431926,-371.50432901,0.000217,2]
[312627568,1706117431935,-3862.48921522,0.00021749,2]
[312627570,1706117431946,-163.74658603,0.00021852,2]
[312627572,1706117431956,-951.20800163,0.00021887,2]
[312627574,1706117431965,-319.09945817,0.00021996,2]
[312627576,1706117431975,-1043.15716476,0.00022,2]
[312627578,1706117431984,-163.74658603,0.00022114,2]
[312627580,1706117431994,-163.74658603,0.00022376,2]
[312627582,1706117432003,-315.96,0.00022445,2]
[312627584,1706117432013,-304.34,0.00022474,2]
[312627586,1706117432023,-952.1947866,0.0002258,2]
[312627588,1706117432033,-163.74658603,0.00022638,2]
[312627590,1706117432042,-170.2496,0.00022696,2]
[312627592,1706117432052,-5438.45786231,0.0002275,2]
[312627594,1706117432062,-665.53272072,0.00022793,2]
[312627596,1706117432071,-172.53244899,0.00022795,2]
[312627598,1706117432081,-798.2263,0.00022893,2]
[312627600,1706117432091,-169.31838675,0.00022896,2]
[312627602,1706117432100,-4544.56229676,0.00022896,2]
[312627604,1706117432110,-152.11251907,0.000229,2]
[312627606,1706117432120,-163.74658603,0.000229,2]
[312627608,1706117432130,-685.30049192,0.000229,6]
[312627610,1706117432140,-988.51870594,0.000229,2]
[312627612,1706117432149,-153.17807324,0.000229,2]
[312627614,1706117432159,-184.26397693,0.000229,2]
[312627615,1706117432169,-1735.604675,0.000229,2]
[312627616,1706117432179,-692.5843477,0.000229,2]
[312627617,1706117432190,-345.77870134,0.00022992,10]
[312627618,1706117432200,-522026.27374344,0.00022993,2]
[312627619,1706117432214,-532.47114706,0.00022993,2]
[312627620,1706117437584,-950.53730553,0.00022993,2]
[312627621,1706117437602,-5289.68457519,0.00022993,2]
[312627622,1706117437616,-2005.097984,0.00022993,2]
[312627623,1706117437645,-47865.81800007,0.00022993,2]
[312627624,1706117437706,-2840.39685999,0.00022993,2]
[312627625,1706117437718,-2259.19680189,0.00022993,2]
[312627626,1706117437731,-362.87583518,0.00022993,2]
[312627627,1706117437745,-12899.59531826,0.00022993,2]
[312627628,1706117437778,-22421.00957323,0.00022993,2]
[312627629,1706117437791,-24284.6480782,0.00022993,2]
[312627630,1706117437804,-374919.62031703,0.00022993,2]
[312627631,1706117437814,-156.91854704,0.00022996,2]
[312627632,1706117437824,-158.58166305,0.00022996,2]
[312627633,1706117437833,-155.68435278,0.00022996,2]
[312627634,1706117437846,-207.66013193,0.00022996,2]
[312627635,1706117437859,-203.12390135,0.00022996,2]
[312627636,1706117437868,-193.54022825,0.00022996,2]
[312627637,1706117437878,-196.87781686,0.00022996,2]
[312627638,1706117437888,-189.85627843,0.00022996,2]
[312627639,1706117437898,-2140.25984846,0.00022996,2]
[312627640,1706117437908,-165.45840668,0.00022996,2]
[312627641,1706117437918,-247.49610787,0.00022996,2]
[312627642,1706117437928,-155.46400088,0.00022996,2]
[312627643,1706117437937,-5099.41444541,0.00022996,2]
[312627644,1706117437947,-402.85205731,0.00022996,2]
[312627645,1706117437957,-3005.50923923,0.00022996,2]
[312627647,1706117437967,-247.85570535,0.00022996,2]
[312627649,1706117437977,-3912.77273116,0.00022996,2]
[312627650,1706117437986,-5366.38073521,0.00022996,2]
[312627652,1706117437996,-179.85459461,0.00022996,2]
[312627654,1706117438005,-1411.29741843,0.00022996,2]
[312627655,1706117438014,-315.12139691,0.00022996,2]
[312627657,1706117438023,-858.48139715,0.00022997,2]
[312627659,1706117438033,-296.50297268,0.00022997,2]
[312627662,1706117438042,-2537.49109563,0.00022998,2]
[312627664,1706117438051,-347.03225315,0.00022998,2]
[312627666,1706117438060,-315.15031521,0.00022998,2]
[312627668,1706117438070,-963.97417087,0.00022998,2]
[312627670,1706117438079,-629.38987952,0.00022998,2]
[312627671,1706117438088,-1795.92693723,0.00022998,2]
[312627674,1706117438102,-164.10212241,0.00022998,2]
[312627675,1706117438112,-156.32542278,0.00022998,2]
[312627677,1706117438122,-482.64447851,0.00022998,2]
[312627679,1706117438131,-158.20515269,0.00022998,2]
[312627682,1706117438141,-2781.52303549,0.00022998,2]
[312627684,1706117438150,-166.19975346,0.00022998,2]
[312627685,1706117438159,-155.38053658,0.00022998,2]
[312627688,1706117438169,-19039.57259554,0.00022999,2]
[312627690,1706117438178,-150.0,0.00022999,2]
[312627692,1706117438187,-150.0,0.00022999,2]
[312627694,1706117438197,-2403741.19909251,0.00023,2]
[312627696,1706117438207,-2000.0,0.00023,2]
[312627698,1706117438216,-200.0,0.00023,2]
[312627700,1706117438225,-150.0,0.00023,2]
[312627702,1706117438234,-343.21152399,0.0002313,2]
[312627704,1706117438243,-952.1947866,0.00023177,2]
[312627706,1706117438252,-392.62,0.00023227,2]
[312627707,1706117438261,-2000.0,0.0002323,2]
[312627709,1706117438270,-315.96,0.00023245,2]
[312627712,1706117438279,-304.34,0.00023544,2]
[312627714,1706117438289,-210.0,0.00023858,2]
[312627716,1706117438298,-152.11251889,0.00023864,2]
[312627718,1706117438307,-960.2,0.00023949,2]
[312627720,1706117438316,-315.96,0.00024046,2]
[312627721,1706117438325,-263.74776051,0.000241,2]
[312627723,1706117438334,-616.0,0.00024103,2]
[312627726,1706117438346,-480.0,0.00024276,2]
[312627728,1706117438356,-167.0,0.00024297,2]
[312627730,1706117438365,-150.58177433,0.000243,2]
[312627732,1706117438374,-304.34,0.00024614,2]
[312627734,1706117438383,-960.2,0.00024796,2]
[312627736,1706117438392,-152.11251889,0.00024833,2]
[312627738,1706117438401,-315.96,0.00024847,2]
[312627740,1706117438411,-392.62,0.00024871,2]
[312627742,1706117438420,-4544.56229674,0.00024912,2]
[312627743,1706117438430,-21462.27262228,0.00025,7]
[312627745,1706117438440,-450.0,0.00025,3]
[312627747,1706117438449,-167.0,0.00025633,2]
[312627749,1706117438458,-960.2,0.00025643,2]
[312627751,1706117438467,-304.34,0.00025684,2]
[312627753,1706117438477,-152.11251889,0.00025801,2]
[312627755,1706117438486,-665.53272068,0.00025976,2]
[312627757,1706117438495,-500.0,0.00026,2]
[312627759,1706117438504,-960.2,0.0002649,2]
[312627761,1706117438514,-392.62,0.00026515,2]
[312627763,1706117438523,-2764.73,0.00026575,2]
[312627765,1706117438532,-2555.06,0.00026575,2]
[312627767,1706117438542,-1000.0,0.00026575,2]
[312627769,1706117438551,-152.11251889,0.0002677,2]
[312627771,1706117438561,-616.0,0.00026781,2]
[312627773,1706117438570,-4544.56229674,0.00026929,2]
[312627775,1706117438580,-167.0,0.0002697,2]
[312627777,1706117438589,-480.0,0.00026973,2]
[312627779,1706117438600,-500.0,0.00027,3]
[312627781,1706117438609,-1818.64,0.00027123,2]
[312627783,1706117438619,-960.2,0.00027337,2]
[312627785,1706117438628,-200.0,0.00027397,5]
[312627787,1706117438637,-823.72,0.00027397,2]
[312627789,1706117438646,-160.05,0.00027397,2]
[312627791,1706117438655,-4170.99,0.00027397,2]
[312627793,1706117438664,-235.63,0.000274,2]
[312627796,1706117438676,-235.63,0.000274,2]
[312627798,1706117438686,-235.63,0.000274,2]
[312627799,1706117438695,-235.63,0.000274,2]
[312627801,1706117438704,-235.63,0.000274,2]
[312627803,1706117438713,-235.63,0.000274,2]
[312627805,1706117438722,-235.63,0.000274,2]
[312627807,1706117438732,-235.63,0.000274,2]
[312627809,1706117438743,-235.63,0.000274,2]
[312627811,1706117438753,-4170.99,0.00027556,2]
[312627813,1706117438762,-823.72,0.00027686,2]
[312627815,1706117438771,-4170.99,0.00027714,2]
[312627817,1706117438781,-152.11251889,0.00027738,2]
[312627819,1706117438791,-4170.99,0.00027872,2]
[312627821,1706117438800,-167.0,0.00027902,5]
[312627824,1706117438810,-200.0,0.00027945,5]
[312627825,1706117438820,-823.72,0.00027974,2]
[312627827,1706117438829,-689.05942203,0.00028,2]
[312627829,1706117438839,-2943.485281,0.00028,2]
[312627831,1706117438850,-4170.99,0.0002803,2]
[312627833,1706117438859,-392.62,0.00028159,2]
[312627835,1706117438868,-960.2,0.00028184,2]
[312627837,1706117438877,-4170.99,0.00028189,2]
[312627839,1706117438886,-823.72,0.00028262,2]
[312627841,1706117438895,-167.0,0.00028307,2]
[312627843,1706117438904,-4170.99,0.00028347,2]
[312627845,1706117438915,-205.0,0.00028382,2]
[312627847,1706117438924,-685.30049188,0.00028444,14]
[312627849,1706117438933,-155.18713766,0.00028493,2]
[312627851,1706117438943,-200.0,0.00028493,5]
[312627854,1706117438952,-4170.99,0.00028505,2]
[312627855,1706117438961,-823.72,0.00028551,2]
[312627857,1706117438970,-4170.99,0.00028664,2]
[312627858,1706117438979,-152.11251889,0.00028707,2]
[312627859,1706117438988,-1276.47653683,0.00028822,6]
[312627860,1706117438996,-4170.99,0.00028822,2]
[312627861,1706117439005,-823.72,0.00028839,2]
[312627862,1706117439014,-4544.56229674,0.00028945,2]
[312627863,1706117439022,-550.0,0.00029,3]
[312627864,1706117439032,-960.2,0.00029031,2]
[312627865,1706117439040,-200.0,0.00029041,5]
[312627866,1706117439049,-823.72,0.00029128,2]
[312627868,1706117439058,-665.53272068,0.0002916,4]
[312627870,1706117439067,-823.72,0.00029416,2]
[312627872,1706117439077,-616.0,0.0002946,2]
[312627874,1706117439087,-155.47856455,0.000295,3]
[312627876,1706117439098,-200.0,0.00029589,5]
[312627878,1706117439106,-480.0,0.00029671,2]
[312627880,1706117439115,-152.11251889,0.00029675,2]
[312627882,1706117439124,-823.72,0.00029704,2]
[312627884,1706117439133,-392.62,0.00029803,2]
[312627886,1706117439142,-823.72,0.00029993,2]
[312627888,1706117439151,-150.0,0.00029999,2]
[312627890,1706117439160,-155.24386444,0.0003,4]
[312627892,1706117439170,-692.06285158,0.0003,2]
[312627894,1706117439178,-19077.24408093,0.0003,4]
[312627896,1706117439187,-465.61785746,0.0003,4]
[312627898,1706117439196,-209.97257261,0.0003,4]
[312627900,1706117439205,-907.93542194,0.0003,4]
[312627902,1706117439214,-171.23116774,0.0003,4]
[312627904,1706117439223,-582.7666979,0.0003,2]
[312627906,1706117439233,-185404.26701221,0.0003,4]